[Event "Championnat d'Europe Rapide"]
[Date "2024.12.08"]
[White "Motylev, Alexander"]
[Black "Saric, Ante"]
[WhiteElo "2596"]
[BlackElo "2482"]
[Round "11.5"]
[Result "1-0"]
[TimeControl "900+10"]

1. e4 {[%emt 00:00:21] [%clk 00:14:58]} c5 {[%emt 00:00:03] [%clk 00:15:18]} 2.
Nf3 {[%emt 00:00:04] [%clk 00:15:03]} e6 {[%emt 00:00:01] [%clk 00:15:27]} 3. d4
{[%emt 00:00:04] [%clk 00:15:09]} cxd4 {[%emt 00:00:02] [%clk 00:15:35]} 4. Nxd4
{[%emt 00:00:01] [%clk 00:15:17]} a6 {[%emt 00:00:04] [%clk 00:15:42]} 5. Bd3
{[%emt 00:00:13] [%clk 00:15:14]} Bc5 {[%clk 00:15:51]} 6. Nb3 {[%emt 00:00:02]
[%clk 00:15:23]} Ba7 {[%clk 00:16:00]} 7. Nc3 {[%emt 00:00:14] [%clk 00:15:18]}
Nc6 {[%emt 00:00:18] [%clk 00:15:52]} 8. Qe2 {[%emt 00:00:29] [%clk 00:14:58]}
d6 {[%emt 00:00:15] [%clk 00:15:48]} 9. Be3 {[%emt 00:00:32] [%clk 00:14:35]} b5
{[%emt 00:00:07] [%clk 00:15:52]} 10. O-O-O {[%emt 00:00:10] [%clk 00:14:36]} b4
{[%emt 00:00:02] [%clk 00:16:00]} 11. Nb1 {[%emt 00:00:24] [%clk 00:14:21]} Nge7
{[%emt 00:00:43] [%clk 00:15:28]} 12. N1d2 {[%emt 00:00:03] [%clk 00:14:27]} O-O
{[%emt 00:00:45] [%clk 00:14:53]} 13. Kb1 {[%emt 00:00:22] [%clk 00:14:15]} a5
{[%emt 00:00:28] [%clk 00:14:36]} 14. Nf3 {[%emt 00:00:41] [%clk 00:13:43]} a4
{[%emt 00:00:20] [%clk 00:14:26]} 15. Nbd4 {[%emt 00:00:06] [%clk 00:13:46]}
Nxd4 {[%emt 00:00:23] [%clk 00:14:14]} 16. Nxd4 {[%emt 00:00:17] [%clk
00:13:39]} Bd7 {[%emt 00:02:39] [%clk 00:11:46]} 17. h4 {[%emt 00:04:13] [%clk
00:09:35]} Qc7 {[%emt 00:00:54] [%clk 00:11:02]} 18. h5 {[%emt 00:00:32] [%clk
00:09:12]} a3 {[%emt 00:00:23] [%clk 00:10:50]} 19. h6 {[%emt 00:01:00] [%clk
00:08:22]} g6 {[%emt 00:00:24] [%clk 00:10:37]} 20. Bc4 {[%emt 00:00:12] [%clk
00:08:19]} axb2 {[%emt 00:01:13] [%clk 00:09:34]} 21. Bb3 {[%emt 00:00:32] [%clk
00:07:56]} d5 {[%emt 00:02:46] [%clk 00:06:59]} 22. Qf3 {[%emt 00:00:56] [%clk
00:07:10]} Qe5 {[%emt 00:00:32] [%clk 00:06:37]} 23. Rh4 {[%emt 00:03:44] [%clk
00:03:35]} f5 {[%emt 00:01:22] [%clk 00:05:27]} 24. exd5 {[%emt 00:00:13] [%clk
00:03:31]} Nxd5 {[%emt 00:00:02] [%clk 00:05:35]} 25. Bxd5 {[%emt 00:00:06]
[%clk 00:03:35]} Qxd5 {[%emt 00:00:20] [%clk 00:05:25]} 26. Qxd5 {[%emt
00:00:05] [%clk 00:03:40]} exd5 {[%emt 00:00:01] [%clk 00:05:34]} 27. Kxb2
{[%emt 00:01:42] [%clk 00:02:08]} Rfe8 {[%emt 00:00:37] [%clk 00:05:07]} 28. Nf3
{[%emt 00:00:12] [%clk 00:02:07]} Bxe3 {[%emt 00:00:10] [%clk 00:05:06]} 29.
fxe3 {[%emt 00:00:01] [%clk 00:02:15]} Rxe3 {[%clk 00:04:54]} 30. Rxb4 {[%emt
00:00:26] [%clk 00:02:22]} Rea3 {[%emt 00:00:09] [%clk 00:04:55]} 31. Rb7 {[%emt
00:00:46] [%clk 00:01:47]} Rxa2+ {[%emt 00:00:12] [%clk 00:04:52]} 32. Kc3
{[%emt 00:00:01] [%clk 00:01:56]} R2a7 {[%emt 00:03:15] [%clk 00:01:48]} 33.
Rxa7 {[%emt 00:00:06] [%clk 00:01:59]} Rxa7 {[%emt 00:00:01] [%clk 00:01:58]}
34. Rxd5 {[%emt 00:00:39] [%clk 00:01:29]} Kf8 {[%emt 00:00:32] [%clk 00:01:35]}
35. Ng5 {[%emt 00:00:18] [%clk 00:01:22]} Be8 {[%emt 00:00:59] [%clk 00:00:47]}
36. Kd4 {[%emt 00:00:10] [%clk 00:01:21]} Ra4+ {[%emt 00:00:31] [%clk 00:00:27]}
37. c4 {[%emt 00:00:17] [%clk 00:01:14]} Ke7 {[%emt 00:00:06] [%clk 00:00:31]}
38. Re5+ {[%emt 00:00:16] [%clk 00:01:06]} Kd7 {[%emt 00:00:09] [%clk 00:00:33]}
39. Nxh7 {[%emt 00:00:13] [%clk 00:01:04]} Bf7 {[%emt 00:00:01] [%clk 00:00:42]}
40. Rc5 {[%emt 00:00:07] [%clk 00:01:06]} Ra8 {[%emt 00:00:27] [%clk 00:00:25]}
41. Ng5 {[%emt 00:00:33] [%clk 00:00:43]} Bg8 {[%emt 00:00:05] [%clk 00:00:31]}
42. Ke5 {[%emt 00:00:16] [%clk 00:00:36]} Ra2 {[%emt 00:00:14] [%clk 00:00:27]}
43. Kf6 {[%emt 00:00:28] [%clk 00:00:18]} Rxg2 {[%emt 00:00:01] [%clk 00:00:36]}
44. Kg7 {[%emt 00:00:02] [%clk 00:00:27]} Rxg5 {[%emt 00:00:31] [%clk 00:00:15]}
45. Kxg8 {[%clk 00:00:35]} Rh5 {[%emt 00:00:10] [%clk 00:00:16]} 46. h7 {[%emt
00:00:02] [%clk 00:00:43]} Kd6 {[%emt 00:00:06] [%clk 00:00:20]} 47. Rd5+ {[%emt
00:00:01] [%clk 00:00:51]} Ke6 {[%clk 00:00:30]} 48. h8=Q {[%emt 00:00:15] [%clk
00:00:46]} Rxh8+ {[%emt 00:00:01] [%clk 00:00:39]} 49. Kxh8 {[%clk 00:00:55]} f4
{[%emt 00:00:03] [%clk 00:00:47]} 50. Kg7 {[%emt 00:00:05] [%clk 00:01:00]} 1-0

[Site "Europe Echecs"]

[Event "Championnat d'Europe Rapide"]
[Date "2024.12.08"]
[White "Dragnev, Valentin"]
[Black "Safarli, Eltaj"]
[WhiteElo "2563"]
[BlackElo "2610"]
[Round "11.6"]
[Result "0-1"]
[TimeControl "900+10"]

1. e4 {[%emt 00:01:28] [%clk 00:13:52]} c5 {[%emt 00:00:01] [%clk 00:15:19]} 2.
Nf3 {[%emt 00:00:03] [%clk 00:13:59]} Nc6 {[%emt 00:00:02] [%clk 00:15:26]} 3.
Bb5 {[%emt 00:00:03] [%clk 00:14:07]} d6 {[%emt 00:00:16] [%clk 00:15:19]} 4.
O-O {[%emt 00:00:06] [%clk 00:14:11]} Bd7 {[%clk 00:15:29]} 5. Re1 {[%emt
00:00:02] [%clk 00:14:20]} Nf6 {[%emt 00:00:01] [%clk 00:15:37]} 6. c3 {[%emt
00:00:04] [%clk 00:14:26]} a6 {[%emt 00:00:01] [%clk 00:15:46]} 7. Bxc6 {[%emt
00:00:06] [%clk 00:14:30]} Bxc6 {[%emt 00:00:02] [%clk 00:15:54]} 8. d4 {[%emt
00:00:02] [%clk 00:14:38]} Bxe4 {[%emt 00:00:26] [%clk 00:15:38]} 9. Bg5 {[%emt
00:00:02] [%clk 00:14:46]} d5 {[%emt 00:01:33] [%clk 00:14:15]} 10. Nbd2 {[%emt
00:00:51] [%clk 00:14:05]} Bxf3 {[%emt 00:01:04] [%clk 00:13:21]} 11. Qxf3
{[%emt 00:01:55] [%clk 00:12:20]} cxd4 {[%emt 00:02:28] [%clk 00:11:03]} 12.
Bxf6 {[%emt 00:00:11] [%clk 00:12:19]} gxf6 {[%emt 00:00:01] [%clk 00:11:11]}
13. Qxf6 {[%emt 00:00:09] [%clk 00:12:20]} Rg8 {[%emt 00:00:02] [%clk 00:11:20]}
14. Qxd4 {[%emt 00:00:34] [%clk 00:11:56]} Qd7 {[%emt 00:00:50] [%clk 00:10:41]}
15. Qd3 {[%emt 00:00:30] [%clk 00:11:35]} O-O-O {[%emt 00:00:28] [%clk
00:10:22]} 16. Qxh7 {[%emt 00:00:29] [%clk 00:11:16]} Bg7 {[%emt 00:00:46] [%clk
00:09:46]} 17. Nf3 {[%emt 00:00:26] [%clk 00:11:00]} e6 {[%emt 00:01:24] [%clk
00:08:33]} 18. Rad1 {[%emt 00:00:37] [%clk 00:10:32]} Qc7 {[%emt 00:01:29] [%clk
00:07:15]} 19. Re3 {[%emt 00:01:50] [%clk 00:08:52]} Bf6 {[%emt 00:00:18] [%clk
00:07:07]} 20. Qd3 {[%emt 00:00:47] [%clk 00:08:14]} Be7 {[%emt 00:00:23] [%clk
00:06:55]} 21. Re2 {[%emt 00:00:55] [%clk 00:07:29]} Bc5 {[%emt 00:00:24] [%clk
00:06:41]} 22. Ne5 {[%emt 00:01:22] [%clk 00:06:17]} Rg5 {[%emt 00:00:29] [%clk
00:06:22]} 23. Nf3 {[%emt 00:00:58] [%clk 00:05:29]} Rh5 {[%emt 00:00:39] [%clk
00:05:52]} 24. Rde1 {[%emt 00:00:38] [%clk 00:05:02]} Rg8 {[%emt 00:00:23] [%clk
00:05:39]} 25. Re5 {[%emt 00:00:25] [%clk 00:04:47]} Rhh8 {[%emt 00:00:38] [%clk
00:05:10]} 26. R5e2 {[%emt 00:01:47] [%clk 00:03:10]} Qf4 {[%emt 00:00:28] [%clk
00:04:53]} 27. b4 {[%emt 00:00:40] [%clk 00:02:40]} Qg4 {[%emt 00:00:19] [%clk
00:04:44]} 28. g3 {[%emt 00:00:06] [%clk 00:02:43]} Qxg3+ {[%emt 00:00:19] [%clk
00:04:36]} 0-1

[Site "Europe Echecs"]

[Event "Championnat d'Europe Rapide"]
[Date "2024.12.08"]
[White "Georgiev, Kiril"]
[Black "Kadric, Denis"]
[WhiteElo "2537"]
[BlackElo "2544"]
[Round "11.7"]
[Result "1/2-1/2"]
[TimeControl "900+10"]

1. Nf3 {[%emt 00:00:03] [%clk 00:15:14]} d6 {[%clk 00:15:19]} 2. d4 {[%emt
00:00:23] [%clk 00:15:00]} Nf6 {[%emt 00:00:02] [%clk 00:15:28]} 3. g3 {[%emt
00:00:48] [%clk 00:14:23]} Nbd7 {[%emt 00:00:02] [%clk 00:15:36]} 4. c4 {[%emt
00:00:06] [%clk 00:14:26]} e5 {[%emt 00:00:02] [%clk 00:15:44]} 5. Nc3 {[%emt
00:00:02] [%clk 00:14:35]} g6 {[%clk 00:15:53]} 6. Bg2 {[%emt 00:00:03] [%clk
00:14:41]} Bg7 {[%clk 00:16:02]} 7. O-O {[%emt 00:00:03] [%clk 00:14:48]} O-O
{[%emt 00:00:02] [%clk 00:16:10]} 8. h3 {[%emt 00:00:23] [%clk 00:14:35]} Re8
{[%emt 00:00:02] [%clk 00:16:18]} 9. dxe5 {[%emt 00:00:08] [%clk 00:14:37]} dxe5
{[%emt 00:00:05] [%clk 00:16:24]} 10. Be3 {[%emt 00:00:02] [%clk 00:14:45]} c6
{[%emt 00:00:07] [%clk 00:16:27]} 11. Qd2 {[%emt 00:00:39] [%clk 00:14:16]} Qe7
{[%emt 00:00:18] [%clk 00:16:20]} 12. Rfd1 {[%emt 00:00:02] [%clk 00:14:24]} Nc5
{[%emt 00:00:27] [%clk 00:16:03]} 13. Ng5 {[%emt 00:01:26] [%clk 00:13:07]} h6
{[%emt 00:02:40] [%clk 00:13:34]} 14. Bxc5 {[%emt 00:00:16] [%clk 00:13:00]}
Qxc5 {[%emt 00:00:02] [%clk 00:13:42]} 15. Nge4 {[%emt 00:00:02] [%clk
00:13:08]} Nxe4 {[%emt 00:00:45] [%clk 00:13:07]} 16. Nxe4 {[%emt 00:00:03]
[%clk 00:13:15]} Qe7 {[%emt 00:00:23] [%clk 00:12:55]} 17. Nd6 {[%emt 00:00:15]
[%clk 00:13:10]} Rd8 {[%emt 00:00:42] [%clk 00:12:23]} 18. Nxc8 {[%emt 00:00:17]
[%clk 00:13:02]} Raxc8 {[%emt 00:00:03] [%clk 00:12:31]} 19. Qe3 {[%emt
00:00:13] [%clk 00:12:58]} a6 {[%emt 00:00:20] [%clk 00:12:22]} 20. Rab1 {[%emt
00:00:51] [%clk 00:12:16]} f5 {[%clk 00:11:40]} 21. Qb3 {[%emt 00:01:06] [%clk
00:12:12]} e4 {[%clk 00:11:31]} 22. e3 {[%emt 00:00:26] [%clk 00:12:15]} h5
{[%clk 00:10:21]} 23. h4 {[%emt 00:01:28] [%clk 00:12:17]} Be5 {[%clk 00:09:16]}
24. Bf1 {[%emt 00:01:44] [%clk 00:11:58]} Kg7 {[%clk 00:08:57]} 25. c5 {[%emt
00:01:22] [%clk 00:11:16]} Kh6 {[%clk 00:08:29]} 26. Bh3 {[%emt 00:01:59] [%clk
00:10:03]} Rc7 {[%clk 00:06:15]} 27. Rxd8 {[%emt 00:02:58] [%clk 00:09:40]} Qxd8
{[%clk 00:06:24]} 28. Rd1 {[%clk 00:09:40]} Rd7 29. Rxd7 {[%clk 00:09:40]} Qxd7
{[%clk 00:06:24]} 30. Bf1 {[%clk 00:09:40]} Qg7 {[%clk 00:06:24]} 31. Bc4 {[%clk
00:09:40]} Bxb2 {[%clk 00:06:24]} 32. Bf7 {[%emt 00:07:19] [%clk 00:06:18]} g5
{[%clk 00:03:10]} 33. Qe6+ {[%emt 00:02:17] [%clk 00:05:09]} Qf6 {[%clk
00:03:18]} 34. hxg5+ {[%emt 00:00:07] [%clk 00:05:14]} Kxg5 {[%clk 00:03:27]}
35. Qd7 {[%emt 00:00:14] [%clk 00:05:12]} h4 {[%clk 00:02:38]} 36. gxh4+ {[%emt
00:01:20] [%clk 00:05:01]} Kxh4 {[%clk 00:02:46]} 37. Be8 {[%emt 00:00:17] [%clk
00:04:56]} Qg7+ {[%clk 00:01:38]} 38. Kf1 {[%emt 00:01:21] [%clk 00:05:03]} Qxd7
{[%clk 00:01:46]} 39. Bxd7 {[%emt 00:00:03] [%clk 00:05:11]} Kg5 {[%clk
00:01:55]} 40. Bc8 {[%clk 00:05:11]} Ba3 {[%emt 00:00:08]} 41. Bxb7 {[%clk
00:05:26]} a5 {[%emt 00:00:01] [%clk 00:02:13]} 42. Bxc6 {[%emt 00:00:02] [%clk
00:05:34]} Bxc5 {[%emt 00:00:02] [%clk 00:02:22]} 1/2-1/2

[Site "Europe Echecs"]

[Event "Championnat d'Europe Rapide"]
[Date "2024.12.08"]
[White "Janik, Igor"]
[Black "Bernadskiy, Vitaliy"]
[WhiteElo "2515"]
[BlackElo "2546"]
[Round "11.8"]
[Result "1-0"]
[TimeControl "900+10"]

1. e4 {[%clk 00:15:17]} c5 {[%emt 00:00:02] [%clk 00:15:19]} 2. Nf3 {[%emt
00:00:02] [%clk 00:15:23]} Nc6 {[%emt 00:00:04] [%clk 00:15:26]} 3. Bb5 {[%emt
00:00:04] [%clk 00:15:30]} Nf6 {[%emt 00:00:01] [%clk 00:15:34]} 4. Bxc6 {[%emt
00:00:16] [%clk 00:15:24]} dxc6 {[%emt 00:00:04] [%clk 00:15:41]} 5. d3 {[%emt
00:00:24] [%clk 00:15:10]} h6 {[%emt 00:00:01] [%clk 00:15:49]} 6. h3 {[%emt
00:00:15] [%clk 00:15:06]} g5 {[%emt 00:00:05] [%clk 00:15:53]} 7. Bd2 {[%emt
00:01:08] [%clk 00:14:08]} Bg7 {[%emt 00:01:27] [%clk 00:14:36]} 8. Bc3 {[%emt
00:00:01] [%clk 00:14:17]} Be6 {[%emt 00:00:06] [%clk 00:14:40]} 9. Nbd2 {[%emt
00:00:06] [%clk 00:14:20]} Rg8 {[%emt 00:00:42] [%clk 00:14:08]} 10. Qe2 {[%emt
00:00:13] [%clk 00:14:17]} Nh5 {[%emt 00:00:18] [%clk 00:14:00]} 11. Bxg7 {[%emt
00:00:03] [%clk 00:14:25]} Nf4 {[%emt 00:00:08] [%clk 00:14:01]} 12. Qf1 {[%emt
00:00:02] [%clk 00:14:32]} Rxg7 {[%emt 00:00:03] [%clk 00:14:10]} 13. g3 {[%emt
00:00:48] [%clk 00:13:54]} Ng6 {[%emt 00:00:02] [%clk 00:14:18]} 14. Qe2 {[%emt
00:00:45] [%clk 00:13:18]} Qb6 {[%emt 00:00:30] [%clk 00:13:58]} 15. Nb3 {[%emt
00:01:18] [%clk 00:12:10]} O-O-O {[%emt 00:02:02] [%clk 00:12:06]} 16. O-O-O
{[%emt 00:00:48] [%clk 00:11:32]} Rgg8 {[%emt 00:00:13] [%clk 00:12:04]} 17.
Nfd2 {[%emt 00:00:15] [%clk 00:11:26]} Qa6 {[%emt 00:03:04] [%clk 00:09:10]} 18.
a3 {[%emt 00:02:04] [%clk 00:09:33]} b6 {[%emt 00:00:02] [%clk 00:09:18]} 19.
Qe3 {[%emt 00:00:20] [%clk 00:09:23]} Ne5 {[%emt 00:00:01] [%clk 00:09:27]} 20.
d4 {[%emt 00:00:32] [%clk 00:09:01]} cxd4 {[%emt 00:01:15] [%clk 00:08:22]} 21.
Nxd4 {[%emt 00:00:01] [%clk 00:09:09]} Bd7 {[%emt 00:00:24] [%clk 00:08:08]} 22.
Qc3 {[%emt 00:00:20] [%clk 00:08:59]} c5 {[%emt 00:00:54] [%clk 00:07:24]} 23.
N4f3 {[%emt 00:03:45] [%clk 00:05:24]} Nxf3 {[%emt 00:00:26] [%clk 00:07:09]}
24. Qxf3 {[%emt 00:00:01] [%clk 00:05:33]} Be6 {[%emt 00:00:17] [%clk 00:07:02]}
25. h4 {[%emt 00:00:09] [%clk 00:05:34]} Rd7 {[%emt 00:02:26] [%clk 00:04:45]}
26. hxg5 {[%emt 00:00:14] [%clk 00:05:30]} hxg5 {[%emt 00:00:03] [%clk
00:04:53]} 27. Nb1 {[%emt 00:00:18] [%clk 00:05:22]} Rxd1+ {[%emt 00:00:08]
[%clk 00:04:54]} 28. Rxd1 {[%emt 00:00:03] [%clk 00:05:29]} g4 {[%emt 00:00:34]
[%clk 00:04:31]} 29. Qe3 {[%emt 00:00:24] [%clk 00:05:15]} Rd8 {[%emt 00:00:22]
[%clk 00:04:19]} 30. Rxd8+ {[%emt 00:00:32] [%clk 00:04:53]} Kxd8 {[%emt
00:00:01] [%clk 00:04:28]} 31. Nc3 {[%emt 00:00:05] [%clk 00:04:58]} Qf1+ {[%emt
00:00:28] [%clk 00:04:09]} 32. Kd2 {[%clk 00:05:07]} Kc8 {[%emt 00:00:05] [%clk
00:04:14]} 33. Qf4 {[%emt 00:02:57] [%clk 00:02:20]} Qc4 {[%emt 00:00:34]} 34.
Qe3 {[%clk 00:02:02]} Qf1 {[%emt 00:00:25] [%clk 00:04:04]} 35. Nd1 {[%emt
00:00:38] [%clk 00:01:34]} Qb5 {[%emt 00:00:09] [%clk 00:04:04]} 36. Kc1 {[%emt
00:00:26] [%clk 00:01:19]} a6 {[%emt 00:00:36] [%clk 00:03:38]} 37. Nc3 {[%emt
00:00:55] [%clk 00:00:34]} Qf1+ {[%emt 00:00:12] [%clk 00:03:36]} 38. Kd2 {[%emt
00:00:01] [%clk 00:00:43]} Kd7 {[%emt 00:00:03] [%clk 00:03:42]} 39. Qf4 {[%emt
00:00:35] [%clk 00:00:19]} Kc6 {[%emt 00:01:03] [%clk 00:02:49]} 40. Nd5 {[%emt
00:00:15] [%clk 00:00:15]} Bxd5 {[%emt 00:00:57] [%clk 00:02:00]} 41. exd5+
{[%clk 00:00:24]} Kxd5 {[%emt 00:00:02] [%clk 00:02:09]} 42. Qxf7+ {[%emt
00:00:04] [%clk 00:00:30]} e6 {[%emt 00:00:15] [%clk 00:02:03]} 43. Qd7+ {[%emt
00:00:22] [%clk 00:00:19]} Ke5 {[%emt 00:00:03] [%clk 00:02:09]} 44. Qc7+ {[%emt
00:00:03] [%clk 00:00:26]} Kd5 {[%emt 00:00:11] [%clk 00:02:08]} 45. Qd7+ {[%emt
00:00:17] [%clk 00:00:20]} Ke5 {[%emt 00:00:01] [%clk 00:02:16]} 46. Qg7+ {[%emt
00:00:07] [%clk 00:00:23]} Kd5 {[%emt 00:00:16] [%clk 00:02:11]} 47. Qg5+ {[%emt
00:00:05] [%clk 00:00:28]} Kc6 {[%emt 00:00:13] [%clk 00:02:08]} 48. Qf4 {[%emt
00:00:15] [%clk 00:00:22]} Qg2 {[%emt 00:01:05] [%clk 00:01:13]} 49. Ke2 {[%emt
00:00:10] [%clk 00:00:23]} Qh3 {[%emt 00:00:45] [%clk 00:00:38]} 50. Qe4+ {[%clk
00:00:32]} Kd6 {[%emt 00:00:14] [%clk 00:00:33]} 51. Qb7 {[%emt 00:00:02] [%clk
00:00:40]} Qh5 {[%emt 00:00:32] [%clk 00:00:12]} 52. Qxb6+ {[%emt 00:00:01]
[%clk 00:00:48]} Ke7 {[%emt 00:00:03] [%clk 00:00:19]} 53. Qc7+ {[%emt 00:00:20]
[%clk 00:00:39]} Kf6 {[%clk 00:00:28]} 54. Qf4+ {[%emt 00:00:01] [%clk
00:00:48]} Ke7 {[%emt 00:00:01] [%clk 00:00:37]} 55. b3 {[%emt 00:00:18] [%clk
00:00:40]} a5 {[%emt 00:00:30] [%clk 00:00:17]} 56. Qc7+ {[%emt 00:00:11] [%clk
00:00:39]} Kf6 {[%clk 00:00:26]} 57. Qxa5 {[%emt 00:00:33] [%clk 00:00:16]} Qe5+
{[%emt 00:00:01] [%clk 00:00:35]} 58. Kf1 {[%clk 00:00:25]} Qd5 {[%emt 00:00:19]
[%clk 00:00:25]} 59. Qc3+ {[%emt 00:00:05] [%clk 00:00:32]} e5 {[%emt 00:00:01]
[%clk 00:00:34]} 60. Qd3 {[%emt 00:00:07] [%clk 00:00:34]} Qh1+ {[%emt 00:00:10]
[%clk 00:00:34]} 61. Ke2 {[%emt 00:00:01] [%clk 00:00:44]} e4 {[%emt 00:00:01]
[%clk 00:00:43]} 62. Qd6+ {[%emt 00:00:02] [%clk 00:00:52]} Kf7 {[%clk
00:00:51]} 63. Qxc5 {[%emt 00:00:15] [%clk 00:00:49]} Qf3+ {[%emt 00:00:02]
[%clk 00:00:58]} 64. Kd2 {[%emt 00:00:01] [%clk 00:00:58]} 1-0

[Site "Europe Echecs"]